[Event "Titled Tuesday Blitz October 25 Early 2022"]
[White "Csonka, Balazs"]
[Black "Deac, Bogdan-Daniel"]
[WhiteFideId "742910"]
[BlackFideId "1226380"]
[WhiteElo "2404"]
[BlackElo "2648"]
[Result "1-0"]
[Round "03"]
[TimeControl "180+1"]
[Date "2022.10.25"]
[WhiteClock "0:00:11"]
[BlackClock "0:00:01"]

1. d4 {[%clk 0:03:00]}  Nf6 {[%clk 0:02:54]} 2. c4 {[%clk 0:03:00]}  e6 {[%clk 0:02:54]} 3. Nf3 {[%clk 0:03:01]}  b6 {[%clk 0:02:54]} 4. g3 {[%clk 0:02:57]}  c6 {[%clk 0:02:53]} 5. Nc3 {[%clk 0:02:52]}  d5 {[%clk 0:02:52]} 6. Bg2 {[%clk 0:02:51]}  Be7 {[%clk 0:02:50]} 7. O-O {[%clk 0:02:50]}  O-O {[%clk 0:02:49]} 8. Ne5 {[%clk 0:02:50]}  Bb7 {[%clk 0:02:48]} 9. e4 {[%clk 0:02:50]}  dxc4 {[%clk 0:02:45]} 10. Nxc4 {[%clk 0:02:48]}  b5 {[%clk 0:02:41]} 11. Ne3 {[%clk 0:02:36]}  Nbd7 {[%clk 0:02:40]} 12. b3 {[%clk 0:02:35]}  a6 {[%clk 0:02:08]} 13. Bb2 {[%clk 0:02:33]}  Rc8 {[%clk 0:02:07]} 14. Qe2 {[%clk 0:02:16]}  Re8 {[%clk 0:01:43]} 15. Rfd1 {[%clk 0:02:15]}  Bf8 {[%clk 0:01:43]} 16. h4 {[%clk 0:02:08]}  Qb6 {[%clk 0:01:40]} 17. h5 {[%clk 0:01:56]}  c5 {[%clk 0:01:32]} 18. d5 {[%clk 0:01:49]}  exd5 {[%clk 0:01:16]} 19. Ncxd5 {[%clk 0:01:45]}  Nxd5 {[%clk 0:01:14]} 20. Nxd5 {[%clk 0:01:42]}  Bxd5 {[%clk 0:01:00]} 21. Rxd5 {[%clk 0:01:43]}  Nf6 {[%clk 0:01:00]} 22. Rf5 {[%clk 0:01:38]}  Qe6 {[%clk 0:00:57]} 23. Re5 {[%clk 0:01:04]}  Qg4 {[%clk 0:00:41]} 24. Bf3 {[%clk 0:00:50]}  Qh3 {[%clk 0:00:38]} 25. Bg2 {[%clk 0:00:47]}  Qg4 {[%clk 0:00:29]} 26. Bf3 {[%clk 0:00:41]}  Qd7 {[%clk 0:00:25]} 27. Rd1 {[%clk 0:00:40]}  Qc7 {[%clk 0:00:25]} 28. Rxe8 {[%clk 0:00:36]}  Rxe8 {[%clk 0:00:26]} 29. h6 {[%clk 0:00:35]}  c4 {[%clk 0:00:22]} 30. bxc4 {[%clk 0:00:32]}  bxc4 {[%clk 0:00:23]} 31. Rc1 {[%clk 0:00:31]}  Rc8 {[%clk 0:00:05]} 32. e5 {[%clk 0:00:31]}  Ne8 {[%clk 0:00:06]} 33. Bd5 {[%clk 0:00:26]}  Qe7 {[%clk 0:00:05]} 34. Rxc4 {[%clk 0:00:16]}  Rd8 {[%clk 0:00:05]} 35. Rd4 {[%clk 0:00:12]}  g6 {[%clk 0:00:05]} 36. Qxa6 {[%clk 0:00:10]}  Bxh6 {[%clk 0:00:04]} 37. e6 {[%clk 0:00:10]}  f5 {[%clk 0:00:04]} 38. Bb3 {[%clk 0:00:10]}  Rxd4 {[%clk 0:00:03]} 39. Bxd4 {[%clk 0:00:11]}  Kf8 {[%clk 0:00:03]} 40. Qc4 {[%clk 0:00:11]}  Qc7 {[%clk 0:00:02]} 41. Bc5+ {[%clk 0:00:11]}  Kg7 {[%clk 0:00:02]} 42. Qc3+ {[%clk 0:00:10]}  Nf6 {[%clk 0:00:01]} 43. Bf8+ {[%clk 0:00:10]}  Kxf8 {[%clk 0:00:01]} 44. Qxc7 {[%clk 0:00:11]} 1-0


[Site "https://www.chess.com"]

[Event "Titled Tuesday Blitz October 25 Early 2022"]
[White "Ehlvest, Jaan"]
[Black "Kovalev, Vladislav"]
[WhiteFideId "4500016"]
[BlackFideId "13504398"]
[WhiteElo "2430"]
[BlackElo "2556"]
[Result "1/2-1/2"]
[Round "03"]
[TimeControl "180+1"]
[Date "2022.10.25"]
[WhiteClock "0:00:03"]
[BlackClock "0:00:15"]

1. e4 {[%clk 0:03:00]}  e5 {[%clk 0:02:57]} 2. Nf3 {[%clk 0:03:00]}  Nc6 {[%clk 0:02:57]} 3. Nc3 {[%clk 0:02:56]}  Nf6 {[%clk 0:02:57]} 4. Bb5 {[%clk 0:02:56]}  Bc5 {[%clk 0:02:56]} 5. O-O {[%clk 0:02:47]}  O-O {[%clk 0:02:56]} 6. Bxc6 {[%clk 0:02:41]}  dxc6 {[%clk 0:02:56]} 7. h3 {[%clk 0:02:41]}  Re8 {[%clk 0:02:55]} 8. d3 {[%clk 0:02:41]}  Nd7 {[%clk 0:02:40]} 9. Kh1 {[%clk 0:02:35]}  Bf8 {[%clk 0:02:37]} 10. Ne2 {[%clk 0:02:29]}  Nc5 {[%clk 0:02:35]} 11. b3 {[%clk 0:02:19]}  a5 {[%clk 0:02:33]} 12. a4 {[%clk 0:02:18]}  f6 {[%clk 0:02:31]} 13. Nh2 {[%clk 0:02:12]}  Ne6 {[%clk 0:02:24]} 14. f4 {[%clk 0:02:11]}  exf4 {[%clk 0:02:25]} 15. Nxf4 {[%clk 0:02:11]}  Nxf4 {[%clk 0:02:26]} 16. Bxf4 {[%clk 0:02:10]}  Be6 {[%clk 0:02:03]} 17. Qf3 {[%clk 0:02:08]}  Qd7 {[%clk 0:02:01]} 18. Qg3 {[%clk 0:02:06]}  Rac8 {[%clk 0:01:51]} 19. Nf3 {[%clk 0:02:06]}  Kh8 {[%clk 0:01:48]} 20. Rae1 {[%clk 0:02:04]}  c5 {[%clk 0:01:47]} 21. e5 {[%clk 0:01:45]}  f5 {[%clk 0:01:32]} 22. h4 {[%clk 0:01:35]}  h6 {[%clk 0:01:22]} 23. Bd2 {[%clk 0:01:25]}  b6 {[%clk 0:01:20]} 24. Ng1 {[%clk 0:01:24]}  Be7 {[%clk 0:00:49]} 25. Nh3 {[%clk 0:01:23]}  Qd8 {[%clk 0:00:49]} 26. Nf4 {[%clk 0:01:23]}  Bf7 {[%clk 0:00:44]} 27. e6 {[%clk 0:01:06]}  Bxh4 {[%clk 0:00:35]} 28. exf7 {[%clk 0:00:46]}  Bxg3 {[%clk 0:00:32]} 29. Rxe8+ {[%clk 0:00:43]}  Qxe8 {[%clk 0:00:33]} 30. fxe8=Q+ {[%clk 0:00:42]}  Rxe8 {[%clk 0:00:34]} 31. Rf3 {[%clk 0:00:39]}  Be1 {[%clk 0:00:22]} 32. Re3 {[%clk 0:00:39]}  Rxe3 {[%clk 0:00:21]} 33. Bxe3 {[%clk 0:00:40]}  g5 {[%clk 0:00:21]} 34. Nd5 {[%clk 0:00:31]}  Bg3 {[%clk 0:00:22]} 35. Kg1 {[%clk 0:00:29]}  Kg7 {[%clk 0:00:21]} 36. d4 {[%clk 0:00:26]}  cxd4 {[%clk 0:00:20]} 37. Bxd4+ {[%clk 0:00:26]}  Kf7 {[%clk 0:00:21]} 38. Kf1 {[%clk 0:00:24]}  Ke6 {[%clk 0:00:21]} 39. c4 {[%clk 0:00:25]}  Bd6 {[%clk 0:00:15]} 40. Bg7 {[%clk 0:00:22]}  h5 {[%clk 0:00:14]} 41. Bh6 {[%clk 0:00:22]}  g4 {[%clk 0:00:14]} 42. Bf4 {[%clk 0:00:20]}  h4 {[%clk 0:00:15]} 43. Ke2 {[%clk 0:00:18]}  Bxf4 {[%clk 0:00:10]} 44. Nxf4+ {[%clk 0:00:18]}  Ke5 {[%clk 0:00:10]} 45. Ng6+ {[%clk 0:00:18]}  Kd4 {[%clk 0:00:09]} 46. Nxh4 {[%clk 0:00:17]}  f4 {[%clk 0:00:06]} 47. Ng6 {[%clk 0:00:13]}  f3+ {[%clk 0:00:05]} 48. gxf3 {[%clk 0:00:12]}  gxf3+ {[%clk 0:00:06]} 49. Kxf3 {[%clk 0:00:12]}  Kc3 {[%clk 0:00:07]} 50. Ke4 {[%clk 0:00:10]}  Kxb3 {[%clk 0:00:07]} 51. Kd3 {[%clk 0:00:07]}  Kxa4 {[%clk 0:00:06]} 52. Nf4 {[%clk 0:00:08]}  c6 {[%clk 0:00:03]} 53. Kc3 {[%clk 0:00:06]}  b5 {[%clk 0:00:03]} 54. cxb5 {[%clk 0:00:06]}  cxb5 {[%clk 0:00:04]} 55. Nd3 {[%clk 0:00:06]}  b4+ {[%clk 0:00:05]} 56. Kb2 {[%clk 0:00:06]}  Kb5 {[%clk 0:00:05]} 57. Nxb4 {[%clk 0:00:04]}  axb4 {[%clk 0:00:05]} 58. Kb3 {[%clk 0:00:03]}  Kc5 {[%clk 0:00:06]} 59. Kb2 {[%clk 0:00:03]}  Kc4 {[%clk 0:00:07]} 60. Kc2 {[%clk 0:00:03]}  Kb5 {[%clk 0:00:08]} 61. Kb3 {[%clk 0:00:03]}  Ka5 {[%clk 0:00:09]} 62. Kb2 {[%clk 0:00:02]}  Ka4 {[%clk 0:00:10]} 63. Ka2 {[%clk 0:00:03]}  b3+ {[%clk 0:00:11]} 64. Kb2 {[%clk 0:00:03]}  Kb4 {[%clk 0:00:11]} 65. Kb1 {[%clk 0:00:03]}  Ka3 {[%clk 0:00:12]} 66. Ka1 {[%clk 0:00:03]}  Ka4 {[%clk 0:00:13]} 67. Kb2 {[%clk 0:00:02]}  Kb4 {[%clk 0:00:14]} 68. Kb1 {[%clk 0:00:03]}  Kc4 {[%clk 0:00:14]} 69. Kb2 {[%clk 0:00:03]}  Kb4 {[%clk 0:00:15]} 1/2-1/2


[Site "https://www.chess.com"]

[Event "Titled Tuesday Blitz October 25 Early 2022"]
[White "Eljanov, Pavel"]
[Black "Goryachkina, Aleksandra"]
[WhiteFideId "14102951"]
[BlackFideId "4147103"]
[WhiteElo "2601"]
[BlackElo "2484"]
[Result "1-0"]
[Round "03"]
[TimeControl "180+1"]
[Date "2022.10.25"]
[WhiteClock "0:00:17"]
[BlackClock "0:00:02"]

1. c4 {[%clk 0:03:00]}  e6 {[%clk 0:02:58]} 2. g3 {[%clk 0:03:00]}  d5 {[%clk 0:02:58]} 3. Bg2 {[%clk 0:03:00]}  Nf6 {[%clk 0:02:58]} 4. Nf3 {[%clk 0:03:00]}  dxc4 {[%clk 0:02:57]} 5. Qa4+ {[%clk 0:03:00]}  Bd7 {[%clk 0:02:57]} 6. Qxc4 {[%clk 0:03:00]}  c5 {[%clk 0:02:57]} 7. Ne5 {[%clk 0:03:00]}  Qc8 {[%clk 0:02:57]} 8. Qd3 {[%clk 0:02:59]}  Nc6 {[%clk 0:02:52]} 9. Nxd7 {[%clk 0:02:59]}  Nxd7 {[%clk 0:02:50]} 10. Nc3 {[%clk 0:02:53]}  Be7 {[%clk 0:02:46]} 11. b3 {[%clk 0:02:46]}  O-O {[%clk 0:02:41]} 12. Bb2 {[%clk 0:02:46]}  Rd8 {[%clk 0:02:33]} 13. Rd1 {[%clk 0:02:36]}  Nf6 {[%clk 0:02:12]} 14. Qb1 {[%clk 0:02:36]}  Qd7 {[%clk 0:02:00]} 15. O-O {[%clk 0:02:35]}  Rac8 {[%clk 0:01:56]} 16. d3 {[%clk 0:02:34]}  b6 {[%clk 0:01:53]} 17. e3 {[%clk 0:02:17]}  Qe8 {[%clk 0:01:37]} 18. a3 {[%clk 0:02:15]}  Nd5 {[%clk 0:01:30]} 19. Rfe1 {[%clk 0:01:58]}  Nxc3 {[%clk 0:00:57]} 20. Bxc3 {[%clk 0:01:59]}  a5 {[%clk 0:00:53]} 21. Qb2 {[%clk 0:01:47]}  Bf8 {[%clk 0:00:52]} 22. h4 {[%clk 0:01:44]}  Rd6 {[%clk 0:00:47]} 23. a4 {[%clk 0:01:32]}  Rcd8 {[%clk 0:00:45]} 24. Qe2 {[%clk 0:01:29]}  Qd7 {[%clk 0:00:37]} 25. h5 {[%clk 0:01:26]}  h6 {[%clk 0:00:37]} 26. Be4 {[%clk 0:01:23]}  Qe7 {[%clk 0:00:28]} 27. Qf3 {[%clk 0:01:17]}  Nb4 {[%clk 0:00:26]} 28. Bxb4 {[%clk 0:01:15]}  axb4 {[%clk 0:00:25]} 29. g4 {[%clk 0:01:01]}  Qg5 {[%clk 0:00:25]} 30. Qg3 {[%clk 0:00:55]}  e5 {[%clk 0:00:10]} 31. Bf5 {[%clk 0:00:39]}  Qf6 {[%clk 0:00:09]} 32. Kg2 {[%clk 0:00:35]}  Be7 {[%clk 0:00:09]} 33. Rh1 {[%clk 0:00:24]}  Rd5 {[%clk 0:00:08]} 34. Qf3 {[%clk 0:00:21]}  Qg5 {[%clk 0:00:06]} 35. Rh3 {[%clk 0:00:20]}  R5d6 {[%clk 0:00:04]} 36. Qe4 {[%clk 0:00:19]}  Bf8 {[%clk 0:00:03]} 37. Qc4 {[%clk 0:00:18]}  Rd5 {[%clk 0:00:03]} 38. Kf1 {[%clk 0:00:17]}  R5d6 {[%clk 0:00:03]} 39. Ke2 {[%clk 0:00:17]}  Qf6 {[%clk 0:00:03]} 40. Rf3 {[%clk 0:00:18]}  e4 {[%clk 0:00:02]} 41. Bxe4 {[%clk 0:00:17]}  Qb2+ {[%clk 0:00:02]} 42. Rd2 {[%clk 0:00:17]} 1-0


[Site "https://www.chess.com"]

[Event "Titled Tuesday Blitz October 25 Early 2022"]
[White "Maghsoodloo, Parham"]
[Black "Shipov, Sergei"]
[WhiteFideId "12539929"]
[BlackFideId "4113624"]
[WhiteElo "2676"]
[BlackElo "2732"]
[Result "1-0"]
[Round "03"]
[TimeControl "180+1"]
[Date "2022.10.25"]
[WhiteClock "0:01:06"]
[BlackClock "0:00:03"]

1. d4 {[%clk 0:03:00]}  d5 {[%clk 0:02:58]} 2. c4 {[%clk 0:02:58]}  dxc4 {[%clk 0:02:57]} 3. e4 {[%clk 0:02:57]}  Nf6 {[%clk 0:02:57]} 4. e5 {[%clk 0:02:58]}  Nd5 {[%clk 0:02:57]} 5. Bxc4 {[%clk 0:02:58]}  Nc6 {[%clk 0:02:58]} 6. Ne2 {[%clk 0:02:58]}  Bf5 {[%clk 0:02:56]} 7. O-O {[%clk 0:02:58]}  e6 {[%clk 0:02:55]} 8. Nbc3 {[%clk 0:02:57]}  Nb6 {[%clk 0:02:55]} 9. Bb3 {[%clk 0:02:56]}  Qe7 {[%clk 0:02:55]} 10. Be3 {[%clk 0:02:51]}  O-O-O {[%clk 0:02:55]} 11. f4 {[%clk 0:02:51]}  h5 {[%clk 0:02:43]} 12. Rc1 {[%clk 0:02:39]}  Kb8 {[%clk 0:02:42]} 13. Ng3 {[%clk 0:02:32]}  Bg4 {[%clk 0:02:39]} 14. Qd2 {[%clk 0:02:32]}  h4 {[%clk 0:02:39]} 15. Nge4 {[%clk 0:02:32]}  h3 {[%clk 0:02:35]} 16. g3 {[%clk 0:02:32]}  Nxd4 {[%clk 0:01:43]} 17. Bxd4 {[%clk 0:02:32]}  Qb4 {[%clk 0:01:43]} 18. Nf2 {[%clk 0:02:03]}  Rxd4 {[%clk 0:01:41]} 19. Qe3 {[%clk 0:02:03]}  Bc5 {[%clk 0:01:10]} 20. Nce4 {[%clk 0:02:02]}  Rxe4 {[%clk 0:00:42]} 21. Qxc5 {[%clk 0:02:01]}  Qxc5 {[%clk 0:00:30]} 22. Rxc5 {[%clk 0:02:02]}  Bf5 {[%clk 0:00:30]} 23. Nxe4 {[%clk 0:02:03]}  Bxe4 {[%clk 0:00:30]} 24. Rd1 {[%clk 0:02:03]}  Bd5 {[%clk 0:00:30]} 25. Bxd5 {[%clk 0:02:01]}  Nxd5 {[%clk 0:00:30]} 26. Kf2 {[%clk 0:02:00]}  b6 {[%clk 0:00:30]} 27. Rc4 {[%clk 0:01:56]}  g6 {[%clk 0:00:28]} 28. b4 {[%clk 0:01:53]}  Kb7 {[%clk 0:00:26]} 29. a3 {[%clk 0:01:52]}  c6 {[%clk 0:00:24]} 30. g4 {[%clk 0:01:51]}  Kc7 {[%clk 0:00:19]} 31. Rd3 {[%clk 0:01:50]}  Kd7 {[%clk 0:00:15]} 32. Kg3 {[%clk 0:01:49]}  Rh7 {[%clk 0:00:14]} 33. a4 {[%clk 0:01:45]}  Rh8 {[%clk 0:00:14]} 34. Rcd4 {[%clk 0:01:45]}  Ke7 {[%clk 0:00:13]} 35. g5 {[%clk 0:01:38]}  Kd7 {[%clk 0:00:12]} 36. Kg4 {[%clk 0:01:38]}  Kc7 {[%clk 0:00:09]} 37. Rc4 {[%clk 0:01:22]}  Ne7 {[%clk 0:00:07]} 38. Rxh3 {[%clk 0:01:16]}  Rf8 {[%clk 0:00:07]} 39. Rd3 {[%clk 0:01:14]}  Nf5 {[%clk 0:00:06]} 40. h4 {[%clk 0:01:07]}  Rh8 {[%clk 0:00:06]} 41. Rh3 {[%clk 0:01:07]}  Kd7 {[%clk 0:00:03]} 42. Rcc3 {[%clk 0:01:05]}  Kc7 {[%clk 0:00:02]} 43. h5 {[%clk 0:01:05]}  gxh5+ {[%clk 0:00:02]} 44. Rxh5 {[%clk 0:01:06]}  Rg8 {[%clk 0:00:03]} 45. Rh7 {[%clk 0:01:06]}  Rf8 {[%clk 0:00:03]} 46. g6 {[%clk 0:01:06]} 1-0


[Site "https://www.chess.com"]

[Event "Titled Tuesday Blitz October 25 Early 2022"]
[White "Matlakov, Maxim"]
[Black "Kozak, Antoni"]
[WhiteFideId "4168003"]
[BlackFideId "21832030"]
[WhiteElo "2669"]
[BlackElo "2439"]
[Result "1-0"]
[Round "03"]
[TimeControl "180+1"]
[Date "2022.10.25"]
[WhiteClock "0:00:29"]
[BlackClock "0:00:03"]

1. Nf3 {[%clk 0:03:00]}  Nf6 {[%clk 0:02:54]} 2. d4 {[%clk 0:03:00]}  d5 {[%clk 0:02:54]} 3. Bf4 {[%clk 0:02:59]}  e6 {[%clk 0:02:50]} 4. Nbd2 {[%clk 0:02:57]}  c5 {[%clk 0:02:47]} 5. e3 {[%clk 0:02:56]}  Nc6 {[%clk 0:02:33]} 6. Bb5 {[%clk 0:02:49]}  Bd7 {[%clk 0:02:25]} 7. O-O {[%clk 0:02:48]}  Be7 {[%clk 0:02:18]} 8. dxc5 {[%clk 0:02:43]}  Bxc5 {[%clk 0:02:14]} 9. a3 {[%clk 0:02:43]}  O-O {[%clk 0:02:13]} 10. b4 {[%clk 0:02:40]}  Be7 {[%clk 0:02:13]} 11. c4 {[%clk 0:02:40]}  Nh5 {[%clk 0:01:55]} 12. cxd5 {[%clk 0:02:06]}  exd5 {[%clk 0:01:53]} 13. Bxc6 {[%clk 0:02:02]}  bxc6 {[%clk 0:01:42]} 14. Be5 {[%clk 0:02:02]}  a5 {[%clk 0:01:41]} 15. Bc3 {[%clk 0:01:53]}  Nf6 {[%clk 0:01:38]} 16. bxa5 {[%clk 0:01:48]}  c5 {[%clk 0:01:37]} 17. Ne5 {[%clk 0:01:46]}  Bb5 {[%clk 0:01:36]} 18. Re1 {[%clk 0:01:45]}  Bd6 {[%clk 0:01:26]} 19. Nef3 {[%clk 0:01:41]}  Qe7 {[%clk 0:01:20]} 20. Qc2 {[%clk 0:01:36]}  Ba6 {[%clk 0:01:20]} 21. Ng5 {[%clk 0:01:31]}  g6 {[%clk 0:01:05]} 22. Ngf3 {[%clk 0:01:28]}  Rab8 {[%clk 0:01:02]} 23. e4 {[%clk 0:01:20]}  d4 {[%clk 0:00:33]} 24. e5 {[%clk 0:01:19]}  dxc3 {[%clk 0:00:33]} 25. exf6 {[%clk 0:01:17]}  Qc7 {[%clk 0:00:21]} 26. Qxc3 {[%clk 0:01:09]}  Rfd8 {[%clk 0:00:21]} 27. Ne4 {[%clk 0:01:07]}  Bf8 {[%clk 0:00:21]} 28. Rad1 {[%clk 0:00:58]}  Rxd1 {[%clk 0:00:17]} 29. Rxd1 {[%clk 0:00:59]}  Qc6 {[%clk 0:00:17]} 30. Re1 {[%clk 0:00:57]}  Re8 {[%clk 0:00:17]} 31. Ne5 {[%clk 0:00:41]}  Qd5 {[%clk 0:00:16]} 32. Ng5 {[%clk 0:00:41]}  Bd6 {[%clk 0:00:02]} 33. Ngxf7 {[%clk 0:00:34]}  Bf8 {[%clk 0:00:02]} 34. Ng5 {[%clk 0:00:33]}  Rd8 {[%clk 0:00:02]} 35. f7+ {[%clk 0:00:33]}  Kg7 {[%clk 0:00:02]} 36. Ng4+ {[%clk 0:00:29]}  Qd4 {[%clk 0:00:03]} 37. Ne6+ {[%clk 0:00:29]} 1-0


[Site "https://www.chess.com"]

[Event "Titled Tuesday Blitz October 25 Early 2022"]
[White "Mikhailovsky, Vladimir"]
[Black "Oparin, Grigoriy"]
[WhiteFideId "34105414"]
[BlackFideId "24125890"]
[WhiteElo "2297"]
[BlackElo "2639"]
[Result "0-1"]
[Round "03"]
[TimeControl "180+1"]
[Date "2022.10.25"]
[WhiteClock "0:00:04"]
[BlackClock "0:00:14"]

1. d4 {[%clk 0:02:59]}  Nf6 {[%clk 0:02:59]} 2. c4 {[%clk 0:02:59]}  e6 {[%clk 0:02:59]} 3. Nc3 {[%clk 0:02:59]}  Bb4 {[%clk 0:03:00]} 4. e3 {[%clk 0:02:59]}  O-O {[%clk 0:03:00]} 5. Bd3 {[%clk 0:03:00]}  c5 {[%clk 0:02:59]} 6. a3 {[%clk 0:03:00]}  Bxc3+ {[%clk 0:02:59]} 7. bxc3 {[%clk 0:03:01]}  Nc6 {[%clk 0:03:00]} 8. Ne2 {[%clk 0:03:01]}  e5 {[%clk 0:02:52]} 9. O-O {[%clk 0:02:56]}  d6 {[%clk 0:02:51]} 10. Bb2 {[%clk 0:02:18]}  Re8 {[%clk 0:02:50]} 11. f3 {[%clk 0:02:14]}  e4 {[%clk 0:02:39]} 12. fxe4 {[%clk 0:02:09]}  Nxe4 {[%clk 0:02:40]} 13. Qc2 {[%clk 0:02:09]}  f5 {[%clk 0:02:38]} 14. Nf4 {[%clk 0:02:06]}  Bd7 {[%clk 0:02:34]} 15. Rf3 {[%clk 0:02:00]}  Qg5 {[%clk 0:02:25]} 16. Raf1 {[%clk 0:01:56]}  Rac8 {[%clk 0:02:12]} 17. Nd5 {[%clk 0:01:38]}  h6 {[%clk 0:01:59]} 18. Bc1 {[%clk 0:01:38]}  b6 {[%clk 0:01:50]} 19. Rf4 {[%clk 0:01:37]}  Qg6 {[%clk 0:01:38]} 20. R1f3 {[%clk 0:01:30]}  Kh8 {[%clk 0:01:32]} 21. Bxe4 {[%clk 0:01:23]}  Rxe4 {[%clk 0:01:33]} 22. Rg3 {[%clk 0:01:22]}  Qe8 {[%clk 0:01:28]} 23. h3 {[%clk 0:01:14]}  Na5 {[%clk 0:01:26]} 24. Qd3 {[%clk 0:00:58]}  cxd4 {[%clk 0:01:06]} 25. exd4 {[%clk 0:00:56]}  Re1+ {[%clk 0:01:05]} 26. Rf1 {[%clk 0:00:56]}  Rxf1+ {[%clk 0:01:05]} 27. Qxf1 {[%clk 0:00:53]}  Nxc4 {[%clk 0:01:03]} 28. Nf4 {[%clk 0:00:33]}  Qe4 {[%clk 0:01:01]} 29. Nh5 {[%clk 0:00:30]}  g5 {[%clk 0:00:18]} 30. Nf6 {[%clk 0:00:11]}  Qe6 {[%clk 0:00:18]} 31. Nxd7 {[%clk 0:00:09]}  Qxd7 {[%clk 0:00:19]} 32. Rf3 {[%clk 0:00:09]}  f4 {[%clk 0:00:18]} 33. Qd3 {[%clk 0:00:08]}  Qe6 {[%clk 0:00:18]} 34. Rf2 {[%clk 0:00:06]}  d5 {[%clk 0:00:13]} 35. Re2 {[%clk 0:00:05]}  Qf6 {[%clk 0:00:14]} 36. Qf3 {[%clk 0:00:05]}  Qf7 {[%clk 0:00:13]} 37. Qg4 {[%clk 0:00:04]}  Re8 {[%clk 0:00:13]} 38. Rxe8+ {[%clk 0:00:04]}  Qxe8 {[%clk 0:00:13]} 39. Kh2 {[%clk 0:00:04]}  Nd6 {[%clk 0:00:13]} 40. h4 {[%clk 0:00:03]}  Qf7 {[%clk 0:00:08]} 41. hxg5 {[%clk 0:00:02]}  hxg5 {[%clk 0:00:07]} 42. Qxg5 {[%clk 0:00:03]}  Ne4 {[%clk 0:00:06]} 43. Qxf4 {[%clk 0:00:03]}  Qxf4+ {[%clk 0:00:06]} 44. Bxf4 {[%clk 0:00:04]}  Nxc3 {[%clk 0:00:07]} 45. Kg3 {[%clk 0:00:04]}  Kg7 {[%clk 0:00:07]} 46. Kg4 {[%clk 0:00:03]}  Kg6 {[%clk 0:00:08]} 47. Be5 {[%clk 0:00:02]}  Nb5 {[%clk 0:00:08]} 48. a4 {[%clk 0:00:03]}  Nc3 {[%clk 0:00:08]} 49. a5 {[%clk 0:00:02]}  bxa5 {[%clk 0:00:08]} 50. Kf4 {[%clk 0:00:03]}  a4 {[%clk 0:00:09]} 51. Bd6 {[%clk 0:00:03]}  Nb5 {[%clk 0:00:09]} 52. Bc5 {[%clk 0:00:02]}  a3 {[%clk 0:00:09]} 53. Bxa3 {[%clk 0:00:02]}  Nxa3 {[%clk 0:00:10]} 54. Ke5 {[%clk 0:00:03]}  a5 {[%clk 0:00:10]} 55. Kxd5 {[%clk 0:00:04]}  a4 {[%clk 0:00:10]} 56. Kc5 {[%clk 0:00:03]}  Nb5 {[%clk 0:00:10]} 57. Kb4 {[%clk 0:00:03]}  a3 {[%clk 0:00:10]} 58. Kb3 {[%clk 0:00:04]}  Kf5 {[%clk 0:00:10]} 59. Ka2 {[%clk 0:00:01]}  Ke4 {[%clk 0:00:10]} 60. g4 {[%clk 0:00:02]}  Kxd4 {[%clk 0:00:11]} 61. g5 {[%clk 0:00:02]}  Ke5 {[%clk 0:00:12]} 62. g6 {[%clk 0:00:03]}  Kf6 {[%clk 0:00:13]} 63. g7 {[%clk 0:00:04]}  Kxg7 {[%clk 0:00:14]} 0-1


[Site "https://www.chess.com"]

[Event "Titled Tuesday Blitz October 25 Early 2022"]
[White "Paravyan, David"]
[Black "Makarian, Rudik"]
[WhiteFideId "4194985"]
[BlackFideId "44105681"]
[WhiteElo "2555"]
[BlackElo "2405"]
[Result "1-0"]
[Round "03"]
[TimeControl "180+1"]
[Date "2022.10.25"]
[WhiteClock "0:00:48"]
[BlackClock "0:00:02"]

1. e4 {[%clk 0:03:00]}  c6 {[%clk 0:03:00]} 2. d4 {[%clk 0:03:00]}  d5 {[%clk 0:03:01]} 3. e5 {[%clk 0:03:01]}  Bf5 {[%clk 0:03:01]} 4. h4 {[%clk 0:03:02]}  h5 {[%clk 0:03:00]} 5. Bd3 {[%clk 0:03:02]}  Bxd3 {[%clk 0:03:01]} 6. Qxd3 {[%clk 0:03:01]}  Qa5+ {[%clk 0:03:01]} 7. c3 {[%clk 0:03:01]}  e6 {[%clk 0:02:59]} 8. a4 {[%clk 0:03:02]}  Qa6 {[%clk 0:02:57]} 9. Qxa6 {[%clk 0:03:01]}  Nxa6 {[%clk 0:02:56]} 10. b4 {[%clk 0:03:02]}  Ne7 {[%clk 0:02:50]} 11. Nf3 {[%clk 0:02:58]}  Nf5 {[%clk 0:02:51]} 12. Nbd2 {[%clk 0:02:56]}  Be7 {[%clk 0:02:43]} 13. Nb3 {[%clk 0:02:56]}  b6 {[%clk 0:02:43]} 14. Ke2 {[%clk 0:02:54]}  f6 {[%clk 0:02:41]} 15. g3 {[%clk 0:02:53]}  Kf7 {[%clk 0:02:41]} 16. Bd2 {[%clk 0:02:52]}  Nc7 {[%clk 0:02:38]} 17. Nc1 {[%clk 0:02:48]}  c5 {[%clk 0:02:26]} 18. Nd3 {[%clk 0:02:46]}  c4 {[%clk 0:02:22]} 19. Nf4 {[%clk 0:02:44]}  a6 {[%clk 0:02:17]} 20. Rae1 {[%clk 0:02:42]}  Rae8 {[%clk 0:02:08]} 21. Kd1 {[%clk 0:02:42]}  Bd8 {[%clk 0:02:05]} 22. Re2 {[%clk 0:02:42]}  Be7 {[%clk 0:01:50]} 23. Rhe1 {[%clk 0:02:41]}  Bd8 {[%clk 0:01:51]} 24. Kc2 {[%clk 0:02:40]}  g5 {[%clk 0:01:20]} 25. exf6 {[%clk 0:02:40]}  gxf4 {[%clk 0:01:17]} 26. Bxf4 {[%clk 0:02:41]}  Kxf6 {[%clk 0:01:11]} 27. Be5+ {[%clk 0:02:41]}  Kg6 {[%clk 0:01:12]} 28. Bxh8 {[%clk 0:02:35]}  Rxh8 {[%clk 0:01:13]} 29. Ne5+ {[%clk 0:02:12]}  Kg7 {[%clk 0:01:05]} 30. Nd7 {[%clk 0:02:13]}  Bf6 {[%clk 0:00:40]} 31. Kd2 {[%clk 0:01:45]}  b5 {[%clk 0:00:14]} 32. Nc5 {[%clk 0:01:43]}  Bxd4 {[%clk 0:00:13]} 33. cxd4 {[%clk 0:01:34]}  Nxd4 {[%clk 0:00:14]} 34. Re3 {[%clk 0:01:35]}  Rf8 {[%clk 0:00:13]} 35. f4 {[%clk 0:01:35]}  Kf7 {[%clk 0:00:10]} 36. Kc3 {[%clk 0:01:34]}  Nf5 {[%clk 0:00:10]} 37. Re5 {[%clk 0:01:06]}  d4+ {[%clk 0:00:10]} 38. Kd2 {[%clk 0:01:07]}  Re8 {[%clk 0:00:09]} 39. Nxe6 {[%clk 0:00:56]}  Rxe6 {[%clk 0:00:02]} 40. Rxf5+ {[%clk 0:00:57]}  Kg6 {[%clk 0:00:02]} 41. Rxe6+ {[%clk 0:00:46]}  Nxe6 {[%clk 0:00:02]} 42. Rd5 {[%clk 0:00:47]}  bxa4 {[%clk 0:00:02]} 43. f5+ {[%clk 0:00:47]}  Kf6 {[%clk 0:00:02]} 44. fxe6 {[%clk 0:00:48]} 1-0


[Site "https://www.chess.com"]